[Event "12th National Schools-ch 2024"]
[Site "Gyan Bhawan Patna"]
[Date "2024.02.07"]
[Round "3.8"]
[White "Vivaan Sachdev"]
[Black "Sadbhav Rautela"]
[Result "1-0"]
[ECO "C54"]
[WhiteElo "1516"]
[BlackElo "1949"]
[Annotator "TA"]
[PlyCount "67"]
[EventDate "2024.02.05"]
[EventCountry "IND"]
[SourceTitle "playchess.com"]
[Source "ChessBase"]
[SourceQuality "1"]
[TimeControl "5400+30"]

{[%evp 12,67,33,7,13,0,9,0,0,0,15,10,22,18,35,24,44,43,46,43,45,0,0,0,0,0,8,0,18,-29,-33,-24,-16,-23,0,-27,-35,-21,-21,-22,-16,-18,62,93,581,568,583,526,562,623,608,625,612,606,1226,1233,29996,29997]} 1. e4 {[%emt 0:01:22]} e5 {[%emt 0:00:27]} 2. Nf3 {[%emt 0:00:06]} Nc6 {[%emt 0:00:09]} 3. Bc4 {[%emt 0:00:03]} Bc5 {[%emt 0:00:12]} 4. c3 {[%emt 0:00:04]} Nf6 {[%emt 0:00:17]} 5. d3 {[%emt 0:00:04]} d6 {[%emt 0:01:13]} 6. O-O {[%emt 0:00:11]} h6 {[%emt 0:00:19]} 7. Nbd2 {[%emt 0:00:16]} (7. b4 $5 Bb6 $8 8. a4 $16) 7... a5 {[%emt 0:00:09]} 8. Bb3 {[%emt 0:01:07]} O-O {[%emt 0:00:32]} 9. h3 {[%emt 0:02:20]} Be6 {[%emt 0:00:16] The position is equal.} 10. Re1 {[%emt 0:05:21]} Re8 {[%emt 0:08:32]} 11. Ba4 {[%emt 0:13:32][%cal Od3d4]} Ba7 {[%emt 0:05:28]} 12. Nf1 {[%emt 0:11:21]} Rb8 {[%emt 0:05:34]} 13. d4 {[%emt 0:04:36]} exd4 {[%emt 0:15:45]} 14. cxd4 {[%emt 0:00:53] d5 is the strong threat.} d5 {[%emt 0:00:18]} 15. e5 {[%emt 0:09:50]} Ne4 {[%emt 0:02:23]} 16. Ng3 {[%emt 0:01:17]} Nxg3 {[%emt 0:08:15]} 17. fxg3 {[%emt 0:00:35]} Bf5 {[%emt 0:06:00] [#] Strongly threatening ...b5.} 18. Be3 {[%emt 0:04:06]} Qd7 {[%emt 0:06:42]} 19. a3 {[%emt 0:07:04]} Be4 {[%emt 0:08:58] aiming for ...b5.} 20. Kh2 {[%emt 0:02:24]} (20. Bb5 $142) 20... b5 $11 {[%emt 0:04:30]} 21. Bc2 {[%emt 0:00:11]} a4 {[%emt 0:02:15]} 22. Rc1 {[%emt 0:03:31]} Bb6 {[%emt 0:03:34]} (22... Na5 $5) 23. Bf2 {[%emt 0:03:35]} Bxc2 {[%emt 0:01:55]} 24. Qxc2 {[%emt 0:02:26]} Na5 {[%emt 0:01:15]} 25. g4 {[%emt 0:01:41][%cal Bg3g4,Bg4g5,Bg5h6][%mdl 32]} Rbc8 {[%emt 0:03:30]} 26. g5 {[%emt 0:01:15]} Nb3 {[%emt 0:06:04]} (26... Re6 $11) 27. gxh6 $14 {[%emt 0:01:17]} Nxc1 $2 {[%emt 0:01:52][%mdl 8192] Loses the game.} (27... gxh6 $16 {is tougher.} 28. Rcd1 c5) 28. Ng5 $18 {[%emt 0:00:10]} (28. Rxc1 gxh6 29. Kh1 b4 $11) (28. Qxc1 Qf5 $16) 28... g6 {[%emt 0:05:14]} 29. e6 {[%emt 0:00:12]} ({Not} 29. Qxc1 c6 $16) (29. Rxc1 c5 $16) 29... Rxe6 {[%emt 0:01:22]} 30. Rxe6 {[%emt 0:00:14]} (30. Qxc1 $2 {loses.} Rxe1 31. h7+ Kg7 32. Qxe1 Re8 $19) ({Stronger than} 30. Nxe6 Re8 $11) 30... Rf8 {[%emt 0:01:49] Black is weak on the dark squares} 31. Rxb6 {[%emt 0:04:00]} cxb6 {[%emt 0:00:32]} 32. Qxc1 {[%emt 0:00:09]} Qf5 {[%emt 0:00:22]} 33. Bg3 {[%emt 0:01:07]} f6 {[%emt 0:01:17] [#] Prevents Be5} 34. Qc7 $1 {Weighted Error Value: White=0.08 (flawless) /Black=0.46.  Loses game:     	---       	Black=1      Mistake:       	White=1     	Black=1      Inaccurate:     	White=2     	---        OK:         	White=11    	Black=9      Best:        	White=2     	Black=2} 1-0

[Event "12th National Schools-ch 2024"]
[Site "Gyan Bhawan Patna"]
[Date "2024.02.07"]
[Round "3.9"]
[White "Arshiya Das"]
[Black "Rajanya Datta"]
[Result "1/2-1/2"]
[ECO "C68"]
[WhiteElo "1667"]
[BlackElo "1660"]
[Annotator "NA"]
[PlyCount "260"]
[EventDate "2024.02.05"]
[EventCountry "IND"]
[SourceTitle "playchess.com"]
[Source "ChessBase"]
[SourceQuality "1"]
[TimeControl "5400+30"]

1. e4 {[%emt 0:00:03]} e5 {[%emt 0:06:19]} 2. Nf3 {[%emt 0:00:09]} Nc6 {[%emt 0:00:05]} 3. Bb5 {[%emt 0:00:05]} a6 {[%emt 0:00:09]} 4. Bxc6 {[%emt 0:00:04]} dxc6 {[%emt 0:00:07]} 5. O-O {[%emt 0:00:05]} Bd6 {[%emt 0:00:36]} 6. d4 {[%emt 0:00:05]} exd4 {[%emt 0:02:31]} 7. Qxd4 {[%emt 0:00:05]} f6 {[%emt 0:00:17]} 8. Nbd2 {[%emt 0:00:46]} Be6 {[%emt 0:01:55]} 9. Re1 {[%emt 0:00:55]} Ne7 {[%emt 0:00:47]} 10. c3 {[%emt 0:13:20]} O-O {[%emt 0:05:28]} 11. Nf1 {[%emt 0:00:58]} Ng6 {[%emt 0:01:54]} 12. Qd1 {[%emt 0:04:12]} c5 {[%emt 0:03:21]} 13. Qc2 {[%emt 0:04:24]} Qd7 {[%emt 0:02:08]} 14. Bd2 {[%emt 1:12:19]} Kh8 {[%emt 0:04:17]} 15. Kh1 {[%emt 0:00:00]} Rae8 {[%emt 0:02:24]} 16. b3 {[%emt 0:00:00]} c6 {[%emt 0:00:42]} 17. Ne3 {[%emt 0:00:00]} Bb8 {[%emt 0:05:09]} 18. Nf1 {[%emt 0:00:00]} f5 {[%emt 0:11:26]} 19. Ng5 {[%emt 0:00:00]} fxe4 {[%emt 0:03:25]} 20. Nxe4 {[%emt 0:00:00]} Bf5 {[%emt 0:02:43]} 21. f3 {[%emt 0:00:00]} Qd8 {[%emt 0:08:39]} 22. Re2 {[%emt 0:00:00]} Nf4 {[%emt 0:04:01]} 23. Bxf4 {[%emt 0:00:00]} Bxf4 {[%emt 0:00:08]} 24. Rae1 {[%emt 0:00:00]} Bg6 {[%emt 0:02:36]} 25. Qb2 {[%emt 0:00:00]} Qd5 {[%emt 0:02:21]} 26. Nf2 {[%emt 0:00:00]} Rxe2 {[%emt 0:03:06]} 27. Qxe2 {[%emt 0:00:00]} Qh5 {[%emt 0:02:12]} 28. Nh3 {[%emt 0:00:00]} Bb8 {[%emt 0:01:09]} 29. Rd1 {[%emt 0:00:00]} Re8 {[%emt 0:01:41]} 30. Qf2 {[%emt 0:00:00]} Qe5 {[%emt 0:01:51]} 31. c4 {[%emt 0:00:00]} h6 {[%emt 0:00:43]} 32. Ng1 {[%emt 0:00:00]} b5 {[%emt 0:03:02]} 33. g3 {[%emt 0:00:00]} Bc7 {[%emt 0:02:52]} 34. Kg2 {[%emt 0:00:00]} Ba5 {[%emt 0:01:28]} 35. Kh1 {[%emt 0:00:00]} Bb4 {[%emt 0:01:35]} 36. a4 {[%emt 0:00:00]} Qc3 {[%emt 0:01:26]} 37. Rd6 {[%emt 0:00:00]} Kh7 {[%emt 0:02:10]} 38. axb5 {[%emt 0:01:52]} cxb5 {[%emt 0:00:12]} 39. Rxa6 {[%emt 0:00:10]} bxc4 {[%emt 0:00:10]} 40. bxc4 {[%emt 0:00:04]} Qxc4 {[%emt 0:00:07]} 41. Ra7 {[%emt 0:00:25]} Bd3 {[%emt 0:02:08]} 42. Ne3 {[%emt 0:01:05]} Qd4 {[%emt 0:00:38]} 43. Ng4 {[%emt 0:00:04]} Qxf2 {[%emt 0:01:34]} 44. Nxf2 {[%emt 0:00:02]} c4 {[%emt 0:00:14]} 45. Rd7 {[%emt 0:00:23]} Re7 {[%emt 0:00:59]} 46. Rd8 {[%emt 0:02:47]} Bg6 {[%emt 0:01:04]} 47. Rc8 {[%emt 0:01:43]} c3 {[%emt 0:00:16]} 48. h4 {[%emt 0:03:32]} c2 {[%emt 0:01:19]} 49. Ne4 {[%emt 0:00:18]} Ba3 {[%emt 0:01:02]} 50. Ne2 {[%emt 0:00:31]} Rxe4 {[%emt 0:04:50]} 51. fxe4 {[%emt 0:00:02]} Bxe4+ {[%emt 0:00:05]} 52. Kg1 {[%emt 0:00:08]} Bd3 {[%emt 0:00:08]} 53. Rc3 {[%emt 0:01:06]} Bxe2 {[%emt 0:00:08]} 54. Rxc2 {[%emt 0:00:02]} Bg4 {[%emt 0:00:12]} 55. Kg2 {[%emt 0:00:41]} Kg6 {[%emt 0:00:18]} 56. Rc6+ {[%emt 0:00:17]} Kf5 {[%emt 0:00:23]} 57. Rc4 {[%emt 0:00:08]} Bd6 {[%emt 0:00:16]} 58. Rd4 {[%emt 0:00:24]} Be5 {[%emt 0:00:05]} 59. Rb4 {[%emt 0:00:18]} Be2 {[%emt 0:00:47]} 60. Kf2 {[%emt 0:00:17]} Bd1 {[%emt 0:00:14]} 61. Rb1 {[%emt 0:00:30]} Bc2 {[%emt 0:00:43]} 62. Rb4 {[%emt 0:00:06]} Bd1 {[%emt 0:00:26]} 63. Rb1 {[%emt 0:00:04]} Bd4+ {[%emt 0:00:06]} 64. Kg2 {[%emt 0:00:23]} Be2 {[%emt 0:00:25]} 65. Re1 {[%emt 0:00:35]} Bb5 {[%emt 0:00:26]} 66. Rd1 {[%emt 0:00:57]} Bc6+ {[%emt 0:00:14]} 67. Kh3 {[%emt 0:00:10]} Be5 {[%emt 0:01:27]} 68. Rf1+ {[%emt 0:00:10]} Kg6 {[%emt 0:00:44]} 69. Re1 {[%emt 0:00:07]} Bd7+ {[%emt 0:00:08]} 70. Kg2 {[%emt 0:00:10]} Kf5 {[%emt 0:00:07]} 71. Kh3 {[%emt 0:00:32]} Bb5 {[%emt 0:00:47]} 72. Rb1 {[%emt 0:00:21]} Be2 {[%emt 0:00:31]} 73. Re1 {[%emt 0:00:12]} Ba6 {[%emt 0:00:11]} 74. Rb1 {[%emt 0:00:40]} g5 {[%emt 0:01:04]} 75. hxg5 {[%emt 0:01:43]} hxg5 {[%emt 0:00:08]} 76. Re1 {[%emt 0:00:21]} Bd3 {[%emt 0:01:00]} 77. Rd1 {[%emt 0:00:29]} Be2 {[%emt 0:00:10]} 78. Re1 {[%emt 0:00:10]} Bf3 {[%emt 0:00:41]} 79. Re3 {[%emt 0:01:27]} g4+ {[%emt 0:00:29]} 80. Kh2 {[%emt 0:00:06]} Ke6 {[%emt 0:00:12]} 81. Re1 {[%emt 0:00:19]} Kd5 {[%emt 0:00:15]} 82. Rb1 {[%emt 0:00:38]} Ke4 {[%emt 0:00:39]} 83. Re1+ {[%emt 0:00:44]} Kd4 {[%emt 0:00:07]} 84. Ra1 {[%emt 0:00:08]} Kd3 {[%emt 0:02:00]} 85. Rb1 {[%emt 0:00:19]} Ke2 {[%emt 0:01:01]} 86. Rg1 {[%emt 0:00:11]} Bc3 {[%emt 0:01:09]} 87. Rc1 {[%emt 0:00:38]} Be5 {[%emt 0:01:03]} 88. Rb1 {[%emt 0:00:13]} Kf2 {[%emt 0:00:31]} 89. Rf1+ {[%emt 0:00:11]} Ke3 {[%emt 0:00:12]} 90. Rf2 {[%emt 0:02:33]} Bd6 {[%emt 0:02:01]} 91. Rb2 {[%emt 0:01:09]} Be2 {[%emt 0:00:15]} 92. Kg2 {[%emt 0:00:03]} Bd3 {[%emt 0:00:16]} 93. Ra2 {[%emt 0:01:01]} Be4+ {[%emt 0:00:21]} 94. Kh2 {[%emt 0:00:04]} Kf3 {[%emt 0:00:08]} 95. Rf2+ {[%emt 0:00:05]} Ke3 {[%emt 0:00:14]} 96. Rb2 {[%emt 0:00:13]} Bc5 {[%emt 0:01:06]} 97. Ra2 {[%emt 0:01:09]} Kf3 {[%emt 0:00:14]} 98. Rb2 {[%emt 0:00:26]} Bg6 {[%emt 0:01:04]} 99. Rb3+ {[%emt 0:01:09]} Kf2 {[%emt 0:00:30]} 100. Rc3 {[%emt 0:01:22]} Be3 {[%emt 0:00:22]} 101. Ra3 {[%emt 0:00:46]} Bf7 {[%emt 0:00:27]} 102. Rc3 {[%emt 0:00:51]} Be6 {[%emt 0:00:58]} 103. Rc6 {[%emt 0:00:46]} Bb3 {[%emt 0:00:43]} 104. Rf6+ {[%emt 0:00:28]} Ke2 {[%emt 0:00:34]} 105. Rg6 {[%emt 0:00:27]} Kf3 {[%emt 0:00:56]} 106. Rf6+ {[%emt 0:00:05]} Ke4 {[%emt 0:00:17]} 107. Rf1 {[%emt 0:00:50]} Bc4 {[%emt 0:00:10]} 108. Rf6 {[%emt 0:01:16]} Be2 {[%emt 0:00:06]} 109. Rf8 {[%emt 0:00:49]} Kd3 {[%emt 0:00:52]} 110. Kg2 {[%emt 0:00:17]} Bc5 {[%emt 0:00:40]} 111. Rf6 {[%emt 0:00:32]} Bd4 {[%emt 0:00:07]} 112. Rf8 {[%emt 0:00:22]} Ke4 {[%emt 0:00:26]} 113. Re8+ {[%emt 0:01:21]} Be5 {[%emt 0:00:10]} 114. Kh2 {[%emt 0:00:26]} Kd4 {[%emt 0:00:31]} 115. Rd8+ {[%emt 0:00:09]} Ke4 {[%emt 0:00:39]} 116. Re8 {[%emt 0:00:04]} Bb5 {[%emt 0:00:08]} 117. Rg8 {[%emt 0:00:20]} Kf3 {[%emt 0:00:31]} 118. Rf8+ {[%emt 0:00:05]} Ke3 {[%emt 0:00:07]} 119. Rg8 {[%emt 0:00:38]} Bd7 {[%emt 0:00:10]} 120. Rd8 {[%emt 0:00:26]} Bc6 {[%emt 0:01:05]} 121. Rg8 {[%emt 0:00:39]} Bf3 {[%emt 0:00:59]} 122. Re8 {[%emt 0:00:06]} Kd4 {[%emt 0:00:12]} 123. Rd8+ {[%emt 0:00:05]} Kc3 {[%emt 0:00:04]} 124. Rc8+ {[%emt 0:00:09]} Kd3 {[%emt 0:00:16]} 125. Rd8+ {[%emt 0:00:05]} Bd4 {[%emt 0:00:08]} 126. Rd7 {[%emt 0:00:14]} Ke3 {[%emt 0:00:08]} 127. Rd8 {[%emt 0:00:51]} Bc5 {[%emt 0:00:32]} 128. Rc8 {[%emt 0:00:10]} Bb4 {[%emt 0:00:19]} 129. Rb8 {[%emt 0:00:15]} Be1 {[%emt 0:00:11]} 130. Rb2 {[%emt 0:00:14]} Bd2 {[%emt 0:00:12]} 1/2-1/2

[Event "12th National Schools-ch 2024"]
[Site "Gyan Bhawan Patna"]
[Date "2024.02.07"]
[Round "3.10"]
[White "Gadhavi Veerbhadrasinh"]
[Black "Daksh Goyal"]
[Result "1-0"]
[ECO "C42"]
[WhiteElo "1651"]
[BlackElo "1853"]
[Annotator "NA RC"]
[PlyCount "55"]
[EventDate "2024.02.05"]
[EventCountry "IND"]
[SourceTitle "playchess.com"]
[Source "ChessBase"]
[SourceQuality "1"]
[TimeControl "5400+30"]

{[%evp 8,55,18,0,8,-49,28,49,57,26,40,44,32,32767,32767,32767,32767,32767,32767,32767,32767,58,60,56,58,39,48,67,70,32767,32767,14,76,56,74,133,150,192,32767,32767,32767,32767,32767,32767,32767,32767,32767,32767,32767,994]} 1. e4 {[%emt 0:00:04]} e5 {[%emt 0:09:10]} 2. Bc4 {[%emt 0:00:49]} Nf6 {[%emt 0:03:04]} 3. Nc3 {[%emt 0:00:26]} Bb4 {[%emt 0:05:13]} 4. Nf3 {[%emt 0:06:30]} O-O {[%emt 0:06:47]} 5. d3 {[%emt 0:04:31]} c6 {[%emt 0:09:34]} 6. a3 {[%emt 0:05:51] C42: Petroff Defence: 3 Nxe5 and unusual White 3rd moves.} (6. O-O $11) 6... Be7 {[%emt 0:07:05]} (6... Bxc3+ $142 7. bxc3 d5 8. exd5 cxd5) 7. Nxe5 {[%emt 0:11:21]} d5 {[%emt 0:01:02]} 8. Bb3 {[%emt 0:02:03]} (8. Ba2 $5) 8... d4 {[%emt 0:00:58]} 9. Nxf7 $1 {[%emt 0:01:40]} Rxf7 {[%emt 0:00:35]} 10. Ne2 {[%emt 0:04:41]} c5 {[%emt 0:01:50]} 11. O-O {[%emt 0:02:49]} Qb6 {[%emt 0:03:54]} 12. Bxf7+ {[%emt 0:02:46]} Kxf7 {[%emt 0:47:18]} 13. f4 {[%emt 0:00:34]} Nc6 {[%emt 0:00:00]} 14. Ng3 {[%emt 0:04:11]} Kg8 {[%emt 0:00:00]} 15. e5 $1 {[%emt 0:05:47]} Ng4 {[%emt 0:00:00]} 16. Qf3 {[%emt 0:05:52]} Ne3 {[%emt 0:00:00]} 17. Bxe3 {[%emt 0:14:08]} dxe3 {[%emt 0:00:00]} 18. c3 {[%emt 0:06:43]} Qxb2 {[%emt 0:00:00]} 19. Rac1 {[%emt 0:10:30]} Qd2 {[%emt 0:00:00]} ({Much worse is} 19... Qxa3 20. Qd5+ Kh8 21. f5 $16) (19... Be6 $11 {remains equal.}) 20. Qd5+ {[%emt 0:03:33]} Kh8 {[%emt 0:00:00]} 21. Ne4 {[%emt 0:00:37]} Qe2 {[%emt 0:00:00]} 22. f5 {[%emt 0:02:12]} Qh5 {[%emt 0:00:00]} 23. Ng3 {[%emt 0:00:45]} Qe8 {[%emt 0:00:00]} 24. Rce1 {[%emt 0:02:13]} Qd8 {[%emt 0:00:23]} 25. Qe4 {[%emt 0:00:57]} Bg5 {[%emt 0:00:05]} 26. f6 {[%emt 0:00:20]} gxf6 {[%emt 0:01:16]} 27. exf6 {[%emt 0:01:08]} Bxf6 {[%emt 0:00:25] [#]} 28. Rxf6 $18 {[%emt 0:00:18]} 1-0

[Event "12th National Schools-ch 2024"]
[Site "Gyan Bhawan Patna"]
[Date "2024.02.07"]
[Round "4.1"]
[White "Kiyana Parihar"]
[Black "Amaya Roy"]
[Result "1-0"]
[ECO "B73"]
[WhiteElo "1341"]
[BlackElo "1066"]
[Annotator "NA RC"]
[PlyCount "61"]
[EventDate "2024.02.05"]
[EventCountry "IND"]
[SourceTitle "playchess.com"]
[Source "ChessBase"]
[SourceQuality "1"]
[TimeControl "5400+30"]

1. e4 {[%emt 0:00:03]} c5 {[%emt 0:00:07]} 2. Nf3 {[%emt 0:00:11]} g6 {[%emt 0:00:08]} 3. d4 {[%emt 0:00:59]} cxd4 {[%emt 0:00:11]} 4. Nxd4 {[%emt 0:00:05]} Bg7 {[%emt 0:00:13]} 5. Nc3 {[%emt 0:01:25]} Nc6 {[%emt 0:00:06]} 6. Be3 {[%emt 0:00:55]} d6 {[%emt 0:00:51]} 7. Be2 {[%emt 0:01:27]} Nf6 {[%emt 0:01:37]} 8. O-O {[%emt 0:03:19]} O-O {[%emt 0:01:31]} 9. Qd2 {[%emt 0:02:19]} Nxd4 {[%emt 0:01:29]} 10. Bxd4 {[%emt 0:00:29]} Be6 {[%emt 0:13:09]} 11. f4 {[%emt 0:04:38]} a6 {[%emt 0:09:39]} 12. Bf3 {[%emt 0:02:27]} Qc7 {[%emt 0:13:55]} 13. a4 {[%emt 0:05:17]} a5 {[%emt 0:13:30]} 14. Nb5 {[%emt 0:04:19]} Qd7 {[%emt 0:01:40]} 15. Rfe1 {[%emt 0:12:17]} Bc4 {[%emt 0:09:43]} 16. Nc3 {[%emt 0:03:52]} e5 {[%emt 0:02:20]} 17. fxe5 {[%emt 0:02:01]} dxe5 {[%emt 0:01:36]} 18. Be3 {[%emt 0:01:02]} Qxd2 {[%emt 0:02:28]} 19. Bxd2 {[%emt 0:00:10]} Rfd8 {[%emt 0:02:37]} 20. Be3 {[%emt 0:01:34]} h5 {[%emt 0:03:29]} 21. Red1 {[%emt 0:02:04]} Be6 {[%emt 0:09:30]} 22. Kf1 {[%emt 0:00:50]} Bg4 {[%emt 0:01:55]} 23. Ke2 {[%emt 0:02:33]} Bxf3+ {[%emt 0:03:03]} 24. gxf3 {[%emt 0:01:47]} Kf8 {[%emt 0:01:49]} 25. Bc5+ {[%emt 0:02:58]} Ke8 {[%emt 0:01:07]} 26. Nb5 {[%emt 0:00:21]} Rac8 {[%emt 0:00:44]} 27. Nd6+ {[%emt 0:01:18]} Kd7 {[%emt 0:00:28]} 28. Nxf7+ {[%emt 0:01:58]} Kc7 {[%emt 0:00:36]} 29. Nxd8 {[%emt 0:00:18]} Rxd8 {[%emt 0:00:10]} 30. Bb6+ {[%emt 0:00:08]} Kxb6 {[%emt 0:00:21]} 31. Rxd8 {[%emt 0:00:15]} 1-0

[Event "12th National Schools-ch 2024"]
[Site "Gyan Bhawan Patna"]
[Date "2024.02.07"]
[Round "4.2"]
[White "Sidhant Rana"]
[Black "Aarit Kapil"]
[Result "0-1"]
[ECO "B92"]
[WhiteElo "1351"]
[BlackElo "1494"]
[Annotator "NA RC"]
[PlyCount "68"]
[EventDate "2024.02.05"]
[EventCountry "IND"]
[SourceTitle "playchess.com"]
[Source "ChessBase"]
[SourceQuality "1"]
[TimeControl "5400+30"]

1. e4 {[%emt 0:00:32]} c5 {[%emt 0:00:21]} 2. Nf3 {[%emt 0:00:18]} d6 {[%emt 0:00:05]} 3. d4 {[%emt 0:00:21]} cxd4 {[%emt 0:00:08]} 4. Nxd4 {[%emt 0:00:09]} Nf6 {[%emt 0:00:08]} 5. Nc3 {[%emt 0:00:06]} g6 {[%emt 0:00:11]} 6. Be2 {[%emt 0:00:06]} Bg7 {[%emt 0:00:07]} 7. Be3 {[%emt 0:00:06]} a6 {[%emt 0:00:09]} 8. O-O {[%emt 0:00:13]} Nbd7 {[%emt 0:00:23]} 9. Kh1 {[%emt 0:00:32]} b5 {[%emt 0:01:33]} 10. f4 {[%emt 0:01:23]} Bb7 {[%emt 0:00:56]} 11. Bf3 {[%emt 0:00:25]} Qc7 {[%emt 0:01:17]} 12. a3 {[%emt 0:00:52]} O-O {[%emt 0:05:31]} 13. Qe2 {[%emt 0:02:04]} e5 {[%emt 0:01:26]} 14. Nb3 {[%emt 0:01:08]} Nb6 {[%emt 0:02:31]} 15. Na5 {[%emt 0:09:53]} Nc4 {[%emt 0:00:42]} 16. Nxc4 {[%emt 0:00:15]} bxc4 {[%emt 0:00:23]} 17. Rad1 {[%emt 0:02:10]} Rab8 {[%emt 0:05:17]} 18. Na4 {[%emt 0:17:36]} Bxe4 {[%emt 0:12:05]} 19. Bxe4 {[%emt 0:00:52]} Nxe4 {[%emt 0:00:42]} 20. Nb6 {[%emt 0:00:58]} c3 {[%emt 0:09:44]} 21. Nd5 {[%emt 0:00:57]} Qb7 {[%emt 0:00:07]} 22. bxc3 {[%emt 0:01:20]} f5 {[%emt 0:00:15]} 23. Qc4 {[%emt 0:06:03]} Kh8 {[%emt 0:00:20]} 24. fxe5 {[%emt 0:07:04]} dxe5 {[%emt 0:00:33]} 25. Nb6 {[%emt 0:02:54]} Rfd8 {[%emt 0:00:17]} 26. a4 {[%emt 0:05:36]} f4 {[%emt 0:03:22]} 27. Rxd8+ {[%emt 0:02:30]} Rxd8 {[%emt 0:00:06]} 28. Bc5 {[%emt 0:06:59]} Nd2 {[%emt 0:01:05]} 29. Rd1 {[%emt 0:00:16]} f3 {[%emt 0:00:48]} 30. Qf1 {[%emt 0:02:08]} Qc7 {[%emt 0:07:42]} 31. Qf2 {[%emt 0:05:35]} fxg2+ {[%emt 0:00:09]} 32. Kxg2 {[%emt 0:00:46]} Qc6+ {[%emt 0:00:12]} 33. Kg1 {[%emt 0:00:08]} Nf3+ {[%emt 0:00:07]} 34. Qxf3 {[%emt 0:00:21]} Rxd1+ {[%emt 0:00:09]} 0-1

[Event "12th National Schools-ch 2024"]
[Site "Gyan Bhawan Patna"]
[Date "2024.02.07"]
[Round "4.3"]
[White "Pal Vedika"]
[Black "Aaradhya Das"]
[Result "1-0"]
[ECO "B15"]
[WhiteElo "1539"]
[BlackElo "1406"]
[Annotator "NA RC"]
[PlyCount "129"]
[EventDate "2024.02.05"]
[EventCountry "IND"]
[SourceTitle "playchess.com"]
[Source "ChessBase"]
[SourceQuality "1"]
[TimeControl "5400+30"]

1. e4 {[%emt 0:03:35]} c6 {[%emt 0:03:18]} 2. d4 {[%emt 0:00:24]} d5 {[%emt 0:00:17]} 3. Nc3 {[%emt 0:01:16]} dxe4 {[%emt 0:00:18]} 4. Nxe4 {[%emt 0:00:05]} Nf6 {[%emt 0:00:43]} 5. Nxf6+ {[%emt 0:01:00]} exf6 {[%emt 0:00:36]} 6. c3 {[%emt 0:01:29]} Bd6 {[%emt 0:00:38]} 7. Bd3 {[%emt 0:01:12]} Qc7 {[%emt 0:01:12]} 8. h3 {[%emt 0:04:00]} O-O {[%emt 0:00:53]} 9. Ne2 {[%emt 0:01:17]} Be6 {[%emt 0:02:54]} 10. O-O {[%emt 0:01:33]} Nd7 {[%emt 0:02:11]} 11. Qc2 {[%emt 0:04:01]} h6 {[%emt 0:02:59]} 12. c4 {[%emt 0:05:00]} b6 {[%emt 0:01:01]} 13. Rd1 {[%emt 0:00:57]} Rfe8 {[%emt 0:03:58]} 14. Be3 {[%emt 0:01:44]} a5 {[%emt 0:10:19]} 15. d5 {[%emt 0:09:23]} Bxh3 {[%emt 0:04:11]} 16. gxh3 {[%emt 0:00:34]} c5 {[%emt 0:01:54]} 17. Be4 {[%emt 0:12:17]} Ne5 {[%emt 0:06:14]} 18. Bg2 {[%emt 0:10:10]} Re7 {[%emt 0:04:27]} 19. Ng3 {[%emt 0:05:57]} Rae8 {[%emt 0:09:13]} 20. Nf5 {[%emt 0:04:05]} Rd7 {[%emt 0:01:46]} 21. Nxd6 {[%emt 0:31:01]} Qxd6 {[%emt 0:02:09]} 22. Rac1 {[%emt 0:00:00]} Ng6 {[%emt 0:02:43]} 23. Qa4 {[%emt 0:00:00]} Red8 {[%emt 0:03:27]} 24. a3 {[%emt 0:00:00]} f5 {[%emt 0:04:14]} 25. Qc2 {[%emt 0:00:00]} f4 {[%emt 0:00:47]} 26. Bd2 {[%emt 0:00:00]} Qf6 {[%emt 0:00:40]} 27. Bc3 {[%emt 0:00:00]} Qg5 {[%emt 0:00:45]} 28. f3 {[%emt 0:00:00]} Nh4 {[%emt 0:01:32]} 29. Qf2 {[%emt 0:00:00]} Rd6 {[%emt 0:00:58]} 30. Kh2 {[%emt 0:00:00]} Rg6 {[%emt 0:01:07]} 31. Rg1 {[%emt 0:00:00]} Re8 {[%emt 0:01:36]} 32. Rce1 {[%emt 0:01:33]} Rxe1 {[%emt 0:01:50]} 33. Bxe1 {[%emt 0:00:02]} Nf5 {[%emt 0:00:20]} 34. Bf1 {[%emt 0:02:47]} Ng3 {[%emt 0:00:21]} 35. Bd3 {[%emt 0:01:24]} f5 {[%emt 0:00:35]} 36. Qg2 {[%emt 0:00:37]} Qh5 {[%emt 0:00:28]} 37. d6 {[%emt 0:00:52]} Kf7 {[%emt 0:02:28]} 38. Bxg3 {[%emt 0:00:33]} fxg3+ {[%emt 0:00:09]} 39. Kh1 {[%emt 0:00:05]} Qg5 {[%emt 0:00:45]} 40. f4 {[%emt 0:00:49]} Qd8 {[%emt 0:01:43]} 41. Qd5+ {[%emt 0:00:38]} Kf8 {[%emt 0:00:16]} 42. Qxf5+ {[%emt 0:00:34]} Rf6 {[%emt 0:00:02]} 43. Qe5 {[%emt 0:00:20]} Rxd6 {[%emt 0:00:27]} 44. Rxg3 {[%emt 0:00:18]} Rxd3 {[%emt 0:00:29]} 45. Qf5+ {[%emt 0:00:16]} Kg8 {[%emt 0:00:07]} 46. Qxd3 {[%emt 0:00:06]} Qxd3 {[%emt 0:00:13]} 47. Rxd3 {[%emt 0:00:01]} Kf7 {[%emt 0:00:11]} 48. Rd6 {[%emt 0:00:07]} g5 {[%emt 0:00:10]} 49. fxg5 {[%emt 0:00:04]} hxg5 {[%emt 0:00:07]} 50. Rxb6 {[%emt 0:00:08]} Kg7 {[%emt 0:00:11]} 51. Rc6 {[%emt 0:00:04]} Kf7 {[%emt 0:00:05]} 52. Rxc5 {[%emt 0:00:04]} Kf6 {[%emt 0:00:12]} 53. Rxa5 {[%emt 0:00:04]} Kg6 {[%emt 0:00:06]} 54. h4 {[%emt 0:00:28]} gxh4 {[%emt 0:00:07]} 55. Rd5 {[%emt 0:00:03]} h3 {[%emt 0:00:14]} 56. c5 {[%emt 0:00:01]} Kf6 {[%emt 0:00:09]} 57. c6 {[%emt 0:00:04]} Ke6 {[%emt 0:00:05]} 58. Rd2 {[%emt 0:00:12]} Ke7 {[%emt 0:00:05]} 59. c7 {[%emt 0:00:08]} Ke6 {[%emt 0:00:06]} 60. c8=Q+ {[%emt 0:07:08]} Ke5 {[%emt 0:00:09]} 61. Qc5+ {[%emt 0:00:00]} Ke4 {[%emt 0:00:31]} 62. Rd4+ {[%emt 0:00:00]} Kf3 {[%emt 0:00:05]} 63. Qc3+ {[%emt 0:00:00]} Kf2 {[%emt 0:00:04]} 64. Rd2+ {[%emt 0:00:00]} Kf1 {[%emt 0:00:05]} 65. Qc1# {[%emt 0:02:30]} 1-0